[Event "Champions Chess Tour Finals 2024"]
[Date "2024.12.19"]
[White "Lazavik, Denis"]
[Black "Vachier-Lagrave, Maxime"]
[WhiteElo "2553"]
[BlackElo "2763"]
[Round "52.1"]
[Result "1/2-1/2"]
[TimeControl "600+2"]

1. d4 {[%clk 0:10:02]} Nf6 {[%clk 0:10:03]} 2. c4 {[%clk 0:10:00]} g6 {[%clk
0:10:04]} 3. Nc3 {[%clk 0:10:00]} d5 {[%clk 0:10:05]} 4. cxd5 {[%clk 0:10:01]}
Nxd5 {[%clk 0:10:06]} 5. Bd2 {[%clk 0:10:01]} Bg7 {[%clk 0:10:05]} 6. e4 {[%clk
0:10:02]} Nxc3 {[%clk 0:10:05]} 7. Bxc3 {[%clk 0:10:03]} O-O {[%clk 0:10:05]} 8.
Qd2 {[%clk 0:10:03]} c5 {[%clk 0:09:59]} 9. d5 {[%clk 0:10:03]} e6 {[%clk
0:10:00]} 10. Ne2 {[%clk 0:10:02]} exd5 {[%clk 0:09:56]} 11. exd5 {[%clk
0:10:03]} Nd7 {[%clk 0:09:41]} 12. Bxg7 {[%clk 0:09:39]} Kxg7 {[%clk 0:09:41]}
13. O-O-O {[%clk 0:09:28]} b5 {[%clk 0:09:11]} 14. Nc3 {[%clk 0:08:53]} b4
{[%clk 0:08:58]} 15. Ne4 {[%clk 0:08:50]} Nf6 {[%clk 0:07:45]} 16. Nxf6 {[%clk
0:07:44]} Qxf6 {[%clk 0:07:45]} 17. Bb5 {[%clk 0:05:15]} Rb8 {[%clk 0:07:03]}
18. Bc4 {[%clk 0:04:46]} Ba6 {[%clk 0:06:56]} 19. Bxa6 {[%clk 0:03:55]} Qxa6
{[%clk 0:06:56]} 20. Kb1 {[%clk 0:03:56]} Rfd8 {[%clk 0:06:07]} 21. Rc1 {[%clk
0:03:44]} Qd6 {[%clk 0:05:48]} 22. Rhd1 {[%clk 0:03:44]} Re8 {[%clk 0:04:55]}
23. g3 {[%clk 0:03:16]} Re5 {[%clk 0:04:11]} 24. Qc2 {[%clk 0:03:15]} Rxd5
{[%clk 0:04:02]} 25. Rxd5 {[%clk 0:03:15]} Qxd5 {[%clk 0:04:02]} 26. Qxc5 {[%clk
0:03:16]} Qe4+ {[%clk 0:03:46]} 27. Qc2 {[%clk 0:03:14]} Re8 {[%clk 0:03:47]}
28. Qxe4 {[%clk 0:02:13]} Rxe4 {[%clk 0:03:48]} 29. Rc2 {[%clk 0:02:03]} Re1+
{[%clk 0:02:44]} 30. Rc1 {[%clk 0:02:04]} Re2 {[%clk 0:02:45]} 31. Rc2 {[%clk
0:02:05]} Re1+ {[%clk 0:02:47]} 32. Rc1 {[%clk 0:02:06]} 1/2-1/2

[Variant "Standard"]
[Site "Europe Echecs"]

[Event "Champions Chess Tour Finals 2024"]
[Date "2024.12.19"]
[White "Vachier-Lagrave, Maxime"]
[Black "Lazavik, Denis"]
[WhiteElo "2763"]
[BlackElo "2553"]
[Round "52.2"]
[Result "1-0"]
[TimeControl "600+2"]

1. e4 {[%clk 0:10:02]} c5 {[%clk 0:10:03]} 2. Nf3 {[%clk 0:10:03]} Nc6 {[%clk
0:10:04]} 3. Nc3 {[%clk 0:10:04]} g6 {[%clk 0:10:04]} 4. d4 {[%clk 0:10:05]}
cxd4 {[%clk 0:10:05]} 5. Nxd4 {[%clk 0:10:06]} Bg7 {[%clk 0:10:05]} 6. Be3
{[%clk 0:10:07]} Nf6 {[%clk 0:10:06]} 7. Bc4 {[%clk 0:10:08]} O-O {[%clk
0:10:05]} 8. Bb3 {[%clk 0:10:09]} Re8 {[%clk 0:10:06]} 9. O-O {[%clk 0:10:04]}
d6 {[%clk 0:10:06]} 10. h3 {[%clk 0:10:02]} Na5 {[%clk 0:10:05]} 11. Qe2 {[%clk
0:09:40]} b6 {[%clk 0:09:29]} 12. Rfd1 {[%clk 0:09:27]} Nxb3 {[%clk 0:09:21]}
13. axb3 {[%clk 0:09:22]} Bb7 {[%clk 0:09:18]} 14. Qd3 {[%clk 0:08:18]} Qc8
{[%clk 0:08:18]} 15. Nde2 {[%clk 0:07:56]} Nd7 {[%clk 0:07:49]} 16. Bd4 {[%clk
0:07:54]} Bxd4 {[%clk 0:07:13]} 17. Nxd4 {[%clk 0:07:51]} Qc5 {[%clk 0:07:11]}
18. Nf3 {[%clk 0:07:11]} a6 {[%clk 0:06:52]} 19. Nd5 {[%clk 0:06:50]} Bxd5
{[%clk 0:06:21]} 20. exd5 {[%clk 0:06:51]} b5 {[%clk 0:06:22]} 21. Re1 {[%clk
0:06:25]} a5 {[%clk 0:06:02]} 22. Re4 {[%clk 0:06:00]} Nf6 {[%clk 0:05:53]} 23.
Rd4 {[%clk 0:06:00]} b4 {[%clk 0:05:40]} 24. Nd2 {[%clk 0:05:58]} Rec8 {[%clk
0:05:09]} 25. Nc4 {[%clk 0:05:55]} Qb5 {[%clk 0:05:07]} 26. Ne3 {[%clk 0:05:16]}
Qxd3 {[%clk 0:04:33]} 27. Rxd3 {[%clk 0:05:17]} Rc5 {[%clk 0:04:32]} 28. Rd4
{[%clk 0:05:04]} Rb8 {[%clk 0:04:09]} 29. Kf1 {[%clk 0:04:25]} Rbb5 {[%clk
0:03:50]} 30. Rad1 {[%clk 0:04:26]} h5 {[%clk 0:03:47]} 31. g4 {[%clk 0:04:20]}
hxg4 {[%clk 0:03:38]} 32. hxg4 {[%clk 0:04:21]} Kg7 {[%clk 0:03:38]} 33. f4
{[%clk 0:04:03]} Rb8 {[%clk 0:03:30]} 34. Kg2 {[%clk 0:03:59]} Nd7 {[%clk
0:02:50]} 35. Re4 {[%clk 0:03:43]} Re8 {[%clk 0:02:48]} 36. g5 {[%clk 0:03:12]}
f5 {[%clk 0:02:31]} 37. gxf6+ {[%clk 0:02:38]} Nxf6 {[%clk 0:02:31]} 38. Rc4
{[%clk 0:02:39]} Rec8 {[%clk 0:02:25]} 39. Ra1 {[%clk 0:02:26]} Kf7 {[%clk
0:02:09]} 40. Kf3 {[%clk 0:02:20]} R8c7 {[%clk 0:01:21]} 41. Ke2 {[%clk
0:02:10]} Ne8 {[%clk 0:00:55]} 42. Kd3 {[%clk 0:02:04]} e6 {[%clk 0:00:46]} 43.
dxe6+ {[%clk 0:02:01]} Kxe6 {[%clk 0:00:47]} 44. Re4+ {[%clk 0:01:30]} Kf7
{[%clk 0:00:19]} 45. Nc4 {[%clk 0:01:31]} d5 {[%clk 0:00:18]} 46. Ne5+ {[%clk
0:01:32]} Kf6 {[%clk 0:00:08]} 47. Re2 {[%clk 0:01:33]} Nd6 {[%clk 0:00:05]} 48.
Rg1 {[%clk 0:01:31]} Rg7 {[%clk 0:00:06]} 49. Rxg6+ {[%clk 0:00:45]} Rxg6 {[%clk
0:00:07]} 50. Nd7+ {[%clk 0:00:44]} Kf5 {[%clk 0:00:08]} 51. Nxc5 {[%clk
0:00:45]} Kxf4 {[%clk 0:00:06]} 52. Ne6+ {[%clk 0:00:32]} Kf5 {[%clk 0:00:08]}
53. Nc7 {[%clk 0:00:28]} Rg3+ {[%clk 0:00:05]} 54. Kd4 {[%clk 0:00:28]} Ne4
{[%clk 0:00:04]} 55. Nxd5 {[%clk 0:00:26]} Ng5 {[%clk 0:00:05]} 56. Re5+ {[%clk
0:00:25]} Kg6 {[%clk 0:00:05]} 57. Nf4+ {[%clk 0:00:23]} Kf7 {[%clk 0:00:04]}
58. Rxa5 {[%clk 0:00:22]} Rg4 {[%clk 0:00:04]} 59. Rf5+ {[%clk 0:00:20]} Ke7
{[%clk 0:00:06]} 60. Kd3 {[%clk 0:00:20]} Nf7 {[%clk 0:00:04]} 61. Nd5+ {[%clk
0:00:14]} Ke6 {[%clk 0:00:05]} 62. Rf6+ {[%clk 0:00:14]} Kxd5 {[%clk 0:00:06]}
63. Rxf7 {[%clk 0:00:15]} Rg3+ {[%clk 0:00:08]} 64. Ke2 {[%clk 0:00:16]} Ke4
{[%clk 0:00:06]} 65. Re7+ {[%clk 0:00:13]} Kd4 {[%clk 0:00:07]} 66. Kd2 {[%clk
0:00:15]} Rg2+ {[%clk 0:00:04]} 67. Re2 {[%clk 0:00:16]} Rg3 {[%clk 0:00:04]}
68. Rh2 {[%clk 0:00:17]} Rg4 {[%clk 0:00:05]} 69. c3+ {[%clk 0:00:17]} Kc5
{[%clk 0:00:06]} 70. Rh5+ {[%clk 0:00:16]} Kc6 {[%clk 0:00:07]} 71. Kd3 {[%clk
0:00:14]} Rg3+ {[%clk 0:00:08]} 72. Kc2 {[%clk 0:00:11]} Rg2+ {[%clk 0:00:09]}
73. Kb1 {[%clk 0:00:12]} Rg3 {[%clk 0:00:10]} 74. Rh4 {[%clk 0:00:12]} bxc3
{[%clk 0:00:06]} 75. Rc4+ {[%clk 0:00:13]} Kb5 {[%clk 0:00:07]} 76. bxc3 {[%clk
0:00:14]} Rg1+ {[%clk 0:00:05]} 77. Kb2 {[%clk 0:00:15]} Rg2+ {[%clk 0:00:05]}
78. Ka3 {[%clk 0:00:16]} Rc2 {[%clk 0:00:06]} 79. Rb4+ {[%clk 0:00:15]} Kc5
{[%clk 0:00:07]} 80. c4 {[%clk 0:00:15]} Kd4 {[%clk 0:00:07]} 81. Rb8 {[%clk
0:00:13]} Kc3 {[%clk 0:00:06]} 82. Rh8 {[%clk 0:00:13]} Rc1 {[%clk 0:00:06]} 83.
Rh3 {[%clk 0:00:14]} 1-0